Cogmind - Beta 14 @@@ ROGUE MODE // 2024.08.09 @ 17:12:55 Player: Compilatron Result: Destroyed by G-50 Soldier with Heavy Laser Performance ------------- Evolutions (4) 2000 Regions Visited (7) 1400 Robots Destroyed (48) 240 Value Destroyed (1688) 1688 Prototype IDs (11) 220 Alien Tech Used (0) 0 Bonus (667) 667 TOTAL SCORE: 6215 Bonus ------- High Alert Combat Kills 6 Follower Combat Kills 684 Friendly Fire -23 Cogmind --------- Core Integrity 0/850 Matter 300/300 Energy 73/100 System Corruption 0% Temperature Cool (9) Movement Core (50) Location -6/Extension Parts ------- > --- POWER (2) -------- (None) > --- PROPULSION (5) --- (None) > --- UTILITY (5) ------ (None) > --- WEAPON (3) ------- (None) > --- INVENTORY (5) ---- Improved Heat Sink Advanced Terrain Scan Processor Advanced Terrain Scan Processor Kinecellerator Transmission Jammer Peak State ------------ > --- POWER ------------ Angular-Fission Engine > --- PROPULSION ------- Flying NPT-Aluminum Exoskeleton > --- UTILITY ---------- Armored Scrap Engine High-capacity Storage Unit Visual Processing Unit Improved Signal Interpreter > --- WEAPON ----------- Flak Ballistic Bore Construct/C > --- INVENTORY -------- Compact Wheel Improved Heat Sink Improved Heat Sink Improved Cooling System Improved Cooling System Coolant Injector Improved Sensor Array Advanced Terrain Scanner Advanced Terrain Scan Processor Advanced Terrain Scan Processor Target Analyzer Kinecellerator Transmission Jammer Recalibrator [Rating: 65] Favorites ----------- Power Improved Ion Engine Engine Improved Ion Engine Propulsion Light Treads Treads Light Treads Leg Aluminum Leg Wheel Compact Wheel Hover Unit Hover Unit Flight Unit Constructs Utility High-capacity Storage Unit Device Armored Scrap Engine Storage High-capacity Storage Unit Processor Visual Processing Unit Weapon Improved Assault Rifle Energy Gun Beam Rifle Energy Cannon Particle Cannon Ballistic Gun Improved Assault Rifle Ballistic Cannon Constructs Special Weapon Plasma Cutter Build | -11 -10 -9 -9 -9 -7 -6 -6 ------- Run | Yrd Mat Mat Sto Rec Fac Fac Ext Slots Evolved 8 | . . 2 . . 4 2 . Power 1 | . . . . . . 1 . Propulsion 3 | . . 2 . . 1 . . Utility 3 | . . . . . 2 1 . Weapon 1 | . . . . . 1 . . Parts Attached 46 | 7 16 7 9 3 3 1 . Power 4 | 1 1 1 1 . . . . Engine 4 | 1 1 1 1 . . . . Core . | . . . . . . . . Reactor . | . . . . . . . . Propulsion 20 | 3 9 4 3 1 . . . Treads 10 | 1 3 3 2 1 . . . Leg 2 | 2 . . . . . . . Wheel 4 | . 3 1 . . . . . Hover 1 | . 1 . . . . . . Flight 3 | . 2 . 1 . . . . Utility 9 | 1 4 . . 1 2 1 . Device 3 | . 2 . . 1 . . . Storage 4 | 1 2 . . . 1 . . Processor 2 | . . . . . 1 1 . Hackware . | . . . . . . . . Protection . | . . . . . . . . Artifact . | . . . . . . . . Weapon 13 | 2 2 2 5 1 1 . . Energy Gun 6 | 1 1 1 2 1 . . . Energy Cannon 1 | . 1 . . . . . . Ballistic Gun 3 | 1 . 1 . . 1 . . Ballistic Cannon . | . . . . . . . . Launcher . | . . . . . . . . Special Weapon 3 | . . . 3 . . . . Impact Weapon . | . . . . . . . . Slashing Weapon . | . . . . . . . . Piercing Weapon . | . . . . . . . . Special Melee Weapon . | . . . . . . . . Unidentified Prototypes 3 | . . 1 1 1 . . . Parts Lost 17 | . 1 2 1 1 . . 12 Power 2 | . 1 1 . . . . . Propulsion 8 | . . 1 1 1 . . 5 Utility 4 | . . . . . . . 4 Weapon 3 | . . . . . . . 3 Highest Loss Streak 8 | . 1 2 1 1 . . 8 To Critical Strikes . | . . . . . . . . Average Slot Usage (%) 76 | . 98 92 99 91 60 60 44 Engine 7 | . 12 6 11 11 5 4 2 Treads 20 | . 14 25 43 43 6 . . Wheel 2 | . 13 15 . . 1 3 . Device 9 | . 14 11 11 11 7 6 5 Storage 7 | . 14 11 11 3 7 6 5 Processor 4 | . . . . . 7 13 12 Energy Gun 8 | . 14 11 9 11 6 6 . Energy Cannon 1 | . . . . . 1 6 2 Ballistic Gun 9 | . 14 11 11 11 10 6 2 Peak Build Rating 65 | 6 8 15 19 32 53 61 65 Average Rating 33 | 4 7 12 16 26 44 57 56 On Entrance 23 | . 6 8 15 17 32 51 61 Naked Turns 1 | . . . . . . . 1 Heaviest Build 66 | 13 49 52 54 54 57 58 66 Greatest Support 86 | 20 40 86 86 83 83 58 58 Greatest Overweight (x) 13 | 1 5 2 . . 2 . 13 Average Overweight (x) . | . 1 1 . . . . . Largest Inventory Capacity 20 | 8 20 20 20 20 20 20 20 Average Capacity 17 | 7 17 20 20 9 19 20 19 Most Carried 20 | 8 14 11 20 20 13 14 14 Average Carried 9 | 5 10 9 14 9 4 13 13 Final Capacity 20 | 8 20 20 20 5 20 20 5 Final Carried 20 | 8 12 10 20 4 13 14 5 Scrap Engine Consumption 85 | . . . . 34 37 5 9 Constructs Created 5 | . . . . . 5 . . Constructs Modified 28 | . . . . . 22 2 4 Class Distribution -------------------- 44% | Mutant 40% | Construct 6% | Commander-Mutant 3% | Scavenger-Mutant 3% | Scavenger-Skirmisher Dominant Class ---------------- Mutant | -10/Materials Mutant | -9/Materials Mutant | -9/Storage Mutant | -9/Recycling Construct | -7/Factory Construct | -6/Factory Construct | -6/Extension Resources | -11 -10 -9 -9 -9 -7 -6 -6 ----------- Run | Yrd Mat Mat Sto Rec Fac Fac Ext Matter Collected 979 | 278 122 186 155 45 150 35 8 Remotely . | . . . . . . . . Salvage Created 2096 | 107 171 274 362 156 416 250 360 Parts 100 | 8 19 7 27 4 18 9 8 Haulers Intercepted 2 | . . 2 . . . . . Recyclers Shooed 2 | 1 . . . . . 1 . Parts Field Recycled . | . . . . . . . . Retrieved Matter . | . . . . . . . . Parts Self-Destructed . | . . . . . . . . Prevented . | . . . . . . . . Kills | -11 -10 -9 -9 -9 -7 -6 -6 ------- Run | Yrd Mat Mat Sto Rec Fac Fac Ext Combat Hostiles Destroyed 38 | . 7 3 7 2 7 6 6 Guns 28 | . 7 3 7 2 6 3 . Cannons 7 | . . . . . . 3 4 Classes Destroyed 14 | 2 3 2 1 2 4 . . Builder 1 | . . . . . 1 . . Tunneler 2 | 2 . . . . . . . Hauler 2 | . . 2 . . . . . Recycler 1 | 1 . . . . . . . Watcher 4 | . 1 . 2 . 1 . . Swarmer 8 | . 5 . . . . 3 . Grunt 13 | . 2 1 2 . 2 2 4 Duelist 1 | . . . . . 1 . . Protector 1 | . . . 1 . . . . Sentry 9 | . . 2 4 1 . . 2 Hunter 2 | . . . . . 1 1 . Programmer 3 | . . . . . 3 . . Scientist 1 | . . . . 1 . . . Scrapper 1 | . . . . 1 . . . Best Kill Streak 5 | 3 3 1 4 1 3 5 2 Combat Bots Only 5 | . 3 1 4 1 2 5 2 Max Kills in Single Turn 2 | 1 2 1 1 1 1 1 1 Gunslinging 1 | . 1 . . . . . . Exploded . | . . . . . . . . Melee . | . . . . . . . . Uniques/NPCs Destroyed . | . . . . . . . . Combat | -11 -10 -9 -9 -9 -7 -6 -6 -------- Run | Yrd Mat Mat Sto Rec Fac Fac Ext Hostile Shots Fired 570 | . 37 26 23 14 62 53 355 Missed 203 | . 10 7 4 4 20 14 144 Damage Taken 5085 | . 336 280 269 180 660 593 2767 Core 1098 | . 77 14 36 27 89 102 753 Absorbed by Shields . | . . . . . . . . Regen/Repaired (Parts) 592 | . . . . . 311 . 281 Core Remaining (%) 84 | 100 69 . . 80 87 . . Volleys Fired 188 | 8 27 22 26 11 34 21 39 Largest 3 | 2 2 2 2 2 3 3 3 Hottest 147 | 70 70 79 79 79 147 147 147 Shots Fired 391 | 16 53 44 52 22 97 55 52 Gun 331 | 16 53 44 52 22 97 34 13 Cannon 60 | . . . . . . 21 39 Launcher . | . . . . . . . . Special . | . . . . . . . . Kinetic 170 | 8 27 22 26 11 46 . 30 Thermal 221 | 8 26 22 26 11 51 55 22 Explosive . | . . . . . . . . Electromagnetic . | . . . . . . . . Robot Hit Streak 17 | 5 9 10 12 16 12 5 17 Robot Miss Streak 6 | 1 3 3 1 1 6 3 3 Penetration Max 1 | . . . . . . . 1 Secondary Targets 2 | . 2 . . . . . . Max Gunslinging Chain 1 | . 1 . . . . . . Shots Hit Robots 282 | 10 33 33 40 20 63 32 51 Core Hits 151 | 5 14 8 14 5 20 18 67 Critical Kills . | . . . . . . . . Critical Parts Destroyed . | . . . . . . . . Critical Strikes 6 | . 1 3 1 1 . . . Burn 6 | . 1 3 1 1 . . . Melee Attacks . | . . . . . . . . Impact . | . . . . . . . . Slashing . | . . . . . . . . Piercing . | . . . . . . . . Sneak Attacks . | . . . . . . . . Combat Hostiles . | . . . . . . . . Follow-up Attacks . | . . . . . . . . Damage Inflicted 4418 | 107 334 466 601 289 1094 528 999 Guns 3439 | 107 334 466 601 289 1094 311 237 Cannons 979 | . . . . . . 217 762 Explosions . | . . . . . . . . Melee . | . . . . . . . . Ramming . | . . . . . . . . Kinetic 2071 | 32 157 235 345 144 530 . 628 Thermal 2347 | 75 177 231 256 145 564 528 371 Explosive . | . . . . . . . . Electromagnetic . | . . . . . . . . Impact . | . . . . . . . . Slashing . | . . . . . . . . Piercing . | . . . . . . . . Highest Corruption 2 | . 1 . . . 2 . . Average Corruption 1 | . 1 . . . 1 . . Corruption Purged . | . . . . . . . . Corruption Blocked . | . . . . . . . . Effects 7 | . . . . . 7 . . Message Errors 3 | . . . . . 3 . . Heat Flow Errors 2 | . . . . . 2 . . Data Loss (minor) 2 | . . . . . 2 . . Overload Shots . | . . . . . . . . Overflow Damage . | . . . . . . . . Projectiles . | . . . . . . . . Explosions . | . . . . . . . . Melee . | . . . . . . . . Knockbacks 14 | . . . . . . . 14 Impact . | . . . . . . . . Kinetic 14 | . . . . . . . 14 Secondary . | . . . . . . . . Self-Inflicted Damage . | . . . . . . . . Shots . | . . . . . . . . Rammed . | . . . . . . . . Targets Rammed . | . . . . . . . . Kicked . | . . . . . . . . Crushed . | . . . . . . . . Highest Temperature 502 | 120 283 66 210 99 378 502 291 Average Temperature 107 | 60 95 26 54 38 144 207 103 Received Heat Transfer 1446 | . 129 108 135 60 54 99 861 Effects 10 | . 1 . . . 2 7 . Shutdowns 2 | . . . . . . 2 . Energy Bleed 2 | . . . . . . 2 . Interference 2 | . 1 . . . 1 . . Short Circuit 3 | . . . . . 1 2 . Damage (minor) 1 | . . . . . . 1 . Siege Activations . | . . . . . . . . Robots Corrupted . | . . . . . . . . Combat Hostiles . | . . . . . . . . Parts Fried . | . . . . . . . . Impact Corruptions . | . . . . . . . . Robots Melted 3 | . . . . . 1 . 2 Combat Hostiles 3 | . . . . . 1 . 2 Parts Melted 23 | 1 3 2 1 3 2 7 4 Heat Transferred 6346 | 222 592 851 732 420 1258 1390 881 Parts Sabotaged . | . . . . . . . . Parts Stolen . | . . . . . . . . Parts Stripped . | . . . . . . . . Power Chain Reactions . | . . . . . . . . Alert | -11 -10 -9 -9 -9 -7 -6 -6 ------- Run | Yrd Mat Mat Sto Rec Fac Fac Ext Peak Influence 540 | 15 216 130 540 220 132 243 100 Initial 210 | . 9 6 54 210 . 23 30 Average 93 | 5 101 54 240 91 33 56 63 Maximum Alert Level 2 | . 1 . 2 1 . 1 . Low Security (%) 83 | 100 80 100 51 65 100 97 100 Level 1 12 | . 19 . 29 34 . 2 . Level 2 3 | . . . 18 . . . . Level 3 . | . . . . . . . . Level 4 . | . . . . . . . . Level 5 . | . . . . . . . . High Security . | . . . . . . . . Max Security . | . . . . . . . . Squads Dispatched 9 | . 1 1 2 . 3 1 1 Investigation 1 | . . 1 . . . . . Extermination 3 | . . . . . 3 . . Reinforcement 3 | . 1 . . . . 1 1 Assault 2 | . . . 2 . . . . Garrison . | . . . . . . . . Intercept . | . . . . . . . . Searches Triggered . | . . . . . . . . Construction Impeded . | . . . . . . . . Haulers Reinforced . | . . . . . . . . Active Scanning Responses . | . . . . . . . . Cargo Convoy Interrupts . | . . . . . . . . Stealth | -11 -10 -9 -9 -9 -7 -6 -6 --------- Run | Yrd Mat Mat Sto Rec Fac Fac Ext Distress Signals 6 | . 1 . 2 1 . 1 1 Communications Jammed . | . . . . . . . . Distress Signals . | . . . . . . . . Times Spotted 90 | . 11 3 25 4 12 10 25 Peak Tracking Total 13 | . 3 2 10 2 3 5 13 Tactical Retreats 3 | . . . 1 . . 1 1 Traps | -11 -10 -9 -9 -9 -7 -6 -6 ------- Run | Yrd Mat Mat Sto Rec Fac Fac Ext Traps Triggered 3 | . 2 . . . 1 . . Indirectly . | . . . . . . . . Trap Hack Attempts . | . . . . . . . . Triggered . | . . . . . . . . Disarmed . | . . . . . . . . Reprogrammed . | . . . . . . . . Reused . | . . . . . . . . Traps Extracted . | . . . . . . . . Installed . | . . . . . . . . Triggered . | . . . . . . . . Machines | -11 -10 -9 -9 -9 -7 -6 -6 ---------- Run | Yrd Mat Mat Sto Rec Fac Fac Ext Machines Disabled 4 | . . . 3 1 . . . Max in Single Turn 1 | . . . 1 . . . . Machines Repaired . | . . . . . . . . Machines Dismantled 3 | . . . 3 . . . . Machines Sabotaged . | . . . . . . . . Overloaded Fab Kills . | . . . . . . . . Hacking | -11 -10 -9 -9 -9 -7 -6 -6 --------- Run | Yrd Mat Mat Sto Rec Fac Fac Ext Machines Accessed 33 | . 3 3 8 11 4 2 2 Terminals 21 | . 2 2 7 5 1 2 2 Fabricators . | . . . . . . . . Repair Stations . | . . . . . . . . Recycling Units 9 | . 1 1 1 4 2 . . Scanalyzers . | . . . . . . . . Garrison Access 1 | . . . . . 1 . . Total Hacks 97 | . 9 9 18 44 7 5 5 Successful 62 | . 3 4 12 39 2 1 1 Failed 35 | . 6 5 6 5 5 4 4 Catastrophic 11 | . 1 1 2 2 3 1 1 Database Lockouts . | . . . . . . . . Manual 19 | . 5 1 2 8 3 . . Terminals 50 | . 7 5 14 12 2 5 5 Fabricators . | . . . . . . . . Repair Stations . | . . . . . . . . Recycling Units 20 | . 2 4 4 6 4 . . Scanalyzers . | . . . . . . . . Garrison Access 1 | . . . . . 1 . . Terminal Hacks 48 | . 2 2 9 33 . 1 1 Record 24 | . . . . 24 . . . Prototype ID Bank 1 | . . . 1 . . . . Open Door 3 | . . . 1 . . 1 1 Branch Access Points 1 | . . . . 1 . . . Terminal Index 1 | . . . . 1 . . . Alert Level 3 | . . . 1 2 . . . Locate Traps 1 | . . . 1 . . . . Dispatch Records 1 | . . . . 1 . . . Patrol Status 1 | . . . 1 . . . . Transport Status 1 | . 1 . . . . . . Hauler Manifests 3 | . . 1 1 1 . . . Registered Components 3 | . 1 . 1 1 . . . Zone Layout 3 | . . 1 2 . . . . Release Object 2 | . . . . 2 . . . Fabricator Hacks . | . . . . . . . . Repair Station Hacks . | . . . . . . . . Recycling Unit Hacks 4 | . . 1 1 1 1 . . Report Inventory 3 | . . 1 . 1 1 . . Retrieve Components 1 | . . . 1 . . . . Scanalyzer . | . . . . . . . . Garrison Access Hacks . | . . . . . . . . Unauthorized Hacks 10 | . 1 1 2 5 1 . . Terminals 2 | . . . 1 1 . . . Operators 2 | . . . 1 1 . . . Fabricators . | . . . . . . . . Repair Stations . | . . . . . . . . Recycling Units 8 | . 1 1 1 4 1 . . Reject 8 | . 1 1 1 4 1 . . Scanalyzers . | . . . . . . . . Garrison Access . | . . . . . . . . Data Cores Recovered . | . . . . . . . . Used . | . . . . . . . . Hacking Detections 25 | . 3 3 7 5 4 2 1 Full Trace Events 1 | . . 1 . . . . . Feedback Events . | . . . . . . . . Feedback Blocked . | . . . . . . . . Robot Schematics Acquired . | . . . . . . . . Robots Built . | . . . . . . . . Authchips . | . . . . . . . . Time . | . . . . . . . . Total Robot Build Rating . | . . . . . . . . Part Schematics Acquired . | . . . . . . . . Parts Built . | . . . . . . . . Authchips . | . . . . . . . . Time . | . . . . . . . . Total Part Build Rating . | . . . . . . . . Parts Repaired . | . . . . . . . . Time . | . . . . . . . . Parts Recycled . | . . . . . . . . Recycled Matter . | . . . . . . . . Retrieved Matter . | . . . . . . . . Retrieved Components 1 | . . . 1 . . . . Parts Scanalyzed . | . . . . . . . . Part Schematics Acquired . | . . . . . . . . Parts Damaged . | . . . . . . . . Bothacking | -11 -10 -9 -9 -9 -7 -6 -6 ------------ Run | Yrd Mat Mat Sto Rec Fac Fac Ext Used RIF Installer . | . . . . . . . . Robots Hacked . | . . . . . . . . Non-combat . | . . . . . . . . Combat . | . . . . . . . . Robot Hacks Applied . | . . . . . . . . Relay Couplers Released . | . . . . . . . . Fabnet Peak Effective % . | . . . . . . . . Robots Rewired 5 | . . . . . . . 5 Allies Hacked . | . . . . . . . . Hacks Repelled . | . . . . . . . . Allies | -11 -10 -9 -9 -9 -7 -6 -6 -------- Run | Yrd Mat Mat Sto Rec Fac Fac Ext Total Allies 18 | . . . 12 . . . 6 Largest Group 10 | . . . 10 3 . . 3 Highest-Rated Group 110 | . . . 110 73 . . 90 Highest-Rated Ally 39 | . . . 31 31 . . 39 Total Orders . | . . . . . . . . Ally Attacks 194 | . . . 155 23 . . 16 Total Damage 2555 | . . . 1791 361 . . 403 Kills 25 | . . . 20 3 . . 2 Allies Corrupted . | . . . . . . . . Allies Melted . | . . . . . . . . Intel | -11 -10 -9 -9 -9 -7 -6 -6 ------- Run | Yrd Mat Mat Sto Rec Fac Fac Ext Robot Analysis Total . | . . . . . . . . Derelict Logs Recovered . | . . . . . . . . Drone Launches . | . . . . . . . . Drone Recoveries . | . . . . . . . . Exploration | -11 -10 -9 -9 -9 -7 -6 -6 ------------- Run | Yrd Mat Mat Sto Rec Fac Fac Ext Turns Passed 5669 | 113 420 353 1084 930 1648 443 678 Spaces Moved 3076 | 64 227 208 473 485 857 344 418 Core 24 | 23 . . . . . . 1 Treads 1410 | 1 1 31 473 485 419 . . Legs 243 | 40 5 . . . 198 . . Wheels 808 | . 218 177 . . 209 204 . Hover 228 | . 2 . . . . 140 86 Flight 363 | . 1 . . . 31 . 331 Fastest Speed 50 | 50 115 115 160 160 106 106 61 Average Speed 138 | 107 129 125 160 160 165 106 76 Slowest Speed 700 | 160 437 160 160 160 292 106 700 Overloaded Moves . | . . . . . . . . Propulsion Burnouts . | . . . . . . . . Robots Hopped 8 | . . . . . . . 8 Cave-ins Triggered . | . . . . . . . . Exploration Rate (%) 33 | 4 41 16 63 76 16 9 46 Regions Visited 7 Branch Regions 3 Pre-discovered Areas . | . . . . . . . . Known Exits Taken . | . . . . . . . . Unknown Exits Taken 7 | 1 1 1 1 1 1 1 . Scrap Searched . | . . . . . . . . Spaces Dug . | . . . . . . . . Terrain Destroyed 3 | . . . . . . . 3 Melee . | . . . . . . . . Projectile . | . . . . . . . . AOE . | . . . . . . . . Terrain Rammed . | . . . . . . . . Walls Destroyed . | . . . . . . . . Machines Disabled . | . . . . . . . . Actions | -11 -10 -9 -9 -9 -7 -6 -6 --------- Run | Yrd Mat Mat Sto Rec Fac Fac Ext Total 4091 | 93 301 257 701 619 1018 381 721 Wait 535 | . 16 9 130 108 92 14 166 Move 3053 | 63 226 207 472 484 856 343 402 Hop 8 | . . . . . . . 8 Pick Up 75 | 14 11 7 24 3 14 2 . Fast Attach 1 | 1 . . . . . . . Attach 19 | 6 2 4 1 2 3 1 . Detach 2 | . . . . . 2 . . Swap 26 | . 14 3 8 1 . . . Drop 39 | 1 5 5 13 4 9 . 2 Fire 188 | 8 27 22 26 11 34 21 39 Melee . | . . . . . . . . Ram . | . . . . . . . . Kick . | . . . . . . . . Crush . | . . . . . . . . Escape Stasis 8 | . . . . . 8 . . Rewire 111 | . . . 1 6 . . 104 Trap . | . . . . . . . . Miscellaneous 26 | . . . 26 . . . . Route ------- -11/Scrapyard -10/Materials -9/Materials -9/Storage (discovered 2 exits: [*Mat] / *Rec) -9/Recycling -7/Factory -6/Factory -6/Extension History --------- Turn | Location | Event 12 | -11/Scrapyard | Discovered new exit (range 16) 114 | -11/Scrapyard | Entered Materials 301 | -10/Materials | Build established: Mutant 470 | -10/Materials | Discovered new exit (range 16) 534 | -10/Materials | Entered another Materials area 534 | -9/Materials | Evolved 2 slots: Propulsion x2 724 | -9/Materials | Discovered new exit (range 11) 887 | -9/Materials | Entered Storage 1360 | -9/Storage | Assisted by bots powering up and referring to "LRC-V3" 1477 | -9/Storage | Lost 3 allies 1690 | -9/Storage | Build established: Commander-Mutant 1699 | -9/Storage | Discovered new exit (range 8) 1755 | -9/Storage | Met a pair of Derelict thieves 1842 | -9/Storage | Lost 4 allies 1965 | -9/Storage | Discovered new exit (range 3) 1971 | -9/Storage | Entered Recycling 1971 | -9/Recycling | Accompanied by 3 allies 1972 | -9/Recycling | Met a Zionite searching for Scraptown 2049 | -9/Recycling | Build established: Mutant 2189 | -9/Recycling | Scanned before Scraplab entrance 2213 | -9/Recycling | Entered Scraplab 2235 | -9/Recycling | Discovered new exit (range 2) 2256 | -9/Recycling | Angered Scraplab inhabitants 2259 | -9/Recycling | Found Prototype Device 2272 | -9/Recycling | Identified Scrap Engine 2328 | -9/Recycling | Lost 3 allies 2844 | -9/Recycling | Discovered new exit (range 16) 2901 | -9/Recycling | Entered Factory 2901 | -7/Factory | Evolved 4 slots: Propulsion x1, Utility x2, Weapon x1 3468 | -7/Factory | Build established: Construct 4542 | -7/Factory | Discovered new exit (range 6) 4549 | -7/Factory | Entered another Factory area 4549 | -6/Factory | Evolved 2 slots: Power x1, Utility x1 4986 | -6/Factory | Discovered new exit (range 6) 4992 | -6/Factory | Entered Extension 5221 | -6/Extension | Rescued a captive Derelict 5289 | -6/Extension | Lost 3 allies 5442 | -6/Extension | Disrupted transfer network 5640 | -6/Extension | Spotted B-75 Beast 5645 | -6/Extension | Spotted B-75 Beast 5658 | -6/Extension | Core integrity fell below 50% 5667 | -6/Extension | Core integrity fell below 20% 5670 | -6/Extension | Destroyed by G-50 Soldier with Heavy Laser Last Messages --------------- remains intact and functional. 05657_ Knocked back. 05659_ Flying NPT-Aluminum Exoskeleton destroyed. 05659_ Flying NPT-Aluminum Exoskeleton core remains intact and functional. 05659_ Knocked back. 05660_ Flying NPT-Aluminum Exoskeleton destroyed. 05660_ Arm. Scrap Engine damaged due to network destabilization (-7). 05660_ T-07 Excavator destroyed. 05661_ U-05 Engineer destroyed. 05662_ Arm. Scrap Engine destroyed. 05662_ Scrap Engine core remains intact and functional. 05664_ U-05 Engineer destroyed. 05665_ Scrap Engine destroyed. 05669_ Broken Imp. Signal Interpreter destroyed. 05669_ Hcp. Storage Unit destroyed. Map ----- +----------------------------------------------------+ | ?????????????????????????????????????????????????? | | ?????????????????????????????????????????????????? | | ?????????????????????????????????????????????????? | | ?????????????????????????????????????????????????? | | ?????????????????????????????????????????????????? | | ?????????????????????????????????????????????????? | | ?????????????????????????????????????????????????? | | ?????????????????????????????????????????????????? | | ?????????????????????????????????????????????????? | | ?????????????????????????????????????????????????? | | ?????????????????????????????????????????????????? | | ?????????????????????????????????????????????????? | | ??????????? #????????# ??????????????????????????? | | ??????????? #????????# ??????????????????????????? | | ??????????? #?######?# ??????????????????????????? | | ????????### ### ## ### ###???????????????????????? | | ????????#"" "" "" ""#???????????????????????? | | ????????# " " " " #???????????????????????? | | ????????# #???????????????????????? | | ???###??# g Y #???????????????????????? | | ####"#### ##############??????????? | | Y%g ?????????? | | % u g ?????????? | | u !|= ????????? | | % ! g *==u%!! ????????? | | k%tk uug!%!%@t! kk k ????????? | | ######### BB!=|%!!#######???????????????? | | ???????## % BBg !!##?????????????????????? | | ????????# BBb ##??????????????????????? | | ????????# % BB #???????????????????????? | | ????????# #???????????????????????? | | ????????######%#"""#######???????????????????????? | | ?????????????###?????????????????????????????????? | | ?????????????????????????????????????????????????? | | | | | | | | | | | | | | | | | | | | | | | | | | | | | | | | | +----------------------------------------------------+ Best States ------------- Heat Dissipation 37 Energy Generation 33 Energy Capacity 764 Matter Stores 300 Matter Capacity 300 Sight Range 18 Terrain Scan Density 10 Evasion (%) 57 Recoil Reduction 5 Item Schematics ----------------- None Robot Schematics ------------------ None Fabricated ------------ Nothing Alien Tech Used ----------------- None Achievements -------------- Universal Adapter \\IAMDERELICT Challenges ------------ None Game ------ Seed DerelictAlphaMagmablaster Manual? 0 Play Time 00:56:58 Cumulative 34.4 hours Start 2024.08.09 @ 16:12:34 End 2024.08.09 @ 17:12:55 Sessions 1 Manual Loads 0 Difficulty Rogue Special Mode None Game No. 45 Rogue 23 Adventurer 20 Explorer 2 Win Type - Total 0 Types 0/0/0/0/0/0/0/0/0 Lore% 25 Gallery% 30 Achievement% 29 Wizard Run 0 Options --------- Layout 1 ASCII 0 Keyboard 0 Movement Numpad Keybinds 0 Fullscreen 2 Font 24/Smallcaps Map View 50x35 Zoom Use 0% Tactical HUD 1 Map Filters NONE Filters NONE Steam 1 RUN: 2a8c4c02-3dae-4a59-b522-42d74ad8d8ff